bitfinex/quotes_BTCUSD_20250127
["timestamp","ask_amount","ask_price","bid_price","bid_amount"]
[1738012560796,0.60003733,102360.0,102350.0,0.7752]
[1738012561008,0.08653875,102370.0,102360.0,0.159066]
[1738012561215,0.08653875,102370.0,102360.0,0.74586008]
[1738012561430,0.08653875,102370.0,102360.0,0.82678329]
[1738012561641,0.0001416,102370.0,102360.0,0.82693064]
[1738012562469,0.0001416,102370.0,102360.0,0.82793064]
[1738012562694,0.0001416,102370.0,102360.0,0.85793064]
[1738012562898,0.57618173,102400.0,102390.0,0.159023]
[1738012563103,0.57618173,102400.0,102390.0,0.500855]
[1738012563104,0.82001302,102400.0,102390.0,0.500855]
[1738012563541,0.57618173,102400.0,102390.0,0.647353]
[1738012563756,0.57618173,102400.0,102390.0,0.722553]
[1738012563757,0.50269004,102400.0,102390.0,0.722553]
[1738012563976,0.55681652,102420.0,102410.0,0.251395]
[1738012564204,0.50269004,102420.0,102410.0,0.8214941]
[1738012564476,0.50269004,102420.0,102410.0,0.8089691]
[1738012564685,0.50269004,102420.0,102410.0,0.8214941]
[1738012564892,0.50269004,102420.0,102410.0,0.774825]
[1738012565320,0.74649233,102420.0,102410.0,0.61983]
[1738012566170,0.74649233,102420.0,102410.0,0.628355]
[1738012566386,0.74649233,102420.0,102410.0,0.63818532]
[1738012566619,0.74649233,102420.0,102410.0,0.64118532]
[1738012567460,0.74663393,102420.0,102410.0,0.64118532]
[1738012567886,0.74663393,102420.0,102410.0,0.63918532]
[1738012568337,0.74663393,102420.0,102410.0,0.64118532]
[1738012569020,0.74663393,102420.0,102410.0,0.63918532]
[1738012569226,0.50283164,102420.0,102410.0,0.78565532]
[1738012569442,0.50283164,102420.0,102410.0,0.88300261]
[1738012569934,0.50283164,102420.0,102410.0,0.89300261]
[1738012571670,0.50283164,102420.0,102410.0,0.78565532]
[1738012572151,0.64928664,102420.0,102410.0,0.78565532]
[1738012572404,0.50283164,102420.0,102410.0,0.77313032]
[1738012572675,0.64928664,102420.0,102410.0,0.63918532]
[1738012572893,0.50283164,102420.0,102410.0,0.78565532]
[1738012573089,0.64928664,102420.0,102410.0,0.78565532]
[1738012573363,0.64928664,102420.0,102410.0,0.51358532]
[1738012573364,0.74663393,102420.0,102410.0,0.51358532]
[1738012575361,0.50283164,102420.0,102410.0,0.66005532]
[1738012576344,0.0001415,102450.0,102440.0,0.012525]
[1738012576346,0.0001415,102450.0,102440.0,0.234452]
[1738012576584,0.00063256,102450.0,102440.0,0.96608409]
[1738012576825,0.00063256,102450.0,102440.0,0.97383428]
[1738012577296,0.00063256,102450.0,102440.0,1.09418157]
[1738012577771,0.00063256,102450.0,102440.0,1.10514502]
[1738012578491,0.00063256,102450.0,102440.0,0.77813064]
[1738012578733,0.00063256,102450.0,102440.0,0.79065564]
[1738012579683,0.24439185,102450.0,102440.0,0.51036519]
[1738012579921,0.30787203,102450.0,102440.0,0.49784019]
[1738012580168,0.39439185,102450.0,102440.0,0.49784019]
[1738012580377,0.53717663,102450.0,102440.0,0.49784019]
[1738012580596,1.03986667,102450.0,102440.0,0.49684019]
[1738012580805,1.03986667,102450.0,102440.0,0.48909]
[1738012581014,1.13821396,102450.0,102440.0,0.49579118]
[1738012581477,1.03921396,102450.0,102440.0,0.49579118]
[1738012581690,1.03821396,102450.0,102440.0,0.49579118]
[1738012581928,1.04021396,102450.0,102440.0,0.49579118]
[1738012583044,1.20246911,102450.0,102440.0,0.39817118]
[1738012583263,1.1627695,102450.0,102440.0,0.39817118]
[1738012583476,1.12263743,102450.0,102440.0,0.39047]
[1738012583701,1.12063743,102450.0,102440.0,0.39047]
[1738012583917,1.11963743,102450.0,102440.0,0.39047]
[1738012584141,1.12263743,102450.0,102440.0,0.39047]
[1738012584357,0.74808189,102450.0,102440.0,0.40951279]
[1738012584566,0.74708189,102450.0,102440.0,0.40951279]
[1738012584778,0.5053226,102450.0,102440.0,0.55593979]
[1738012584990,0.00163256,102450.0,102440.0,0.56593979]
[1738012585205,0.00363256,102450.0,102440.0,0.56593979]
[1738012585459,0.00263256,102450.0,102440.0,0.56593979]
[1738012585672,0.00063256,102450.0,102440.0,0.92832917]
[1738012585881,0.00063256,102450.0,102440.0,0.97712917]
[1738012586092,0.00063256,102450.0,102440.0,0.81198708]
[1738012586307,0.00063256,102450.0,102440.0,0.80198708]
[1738012586727,0.00063256,102450.0,102440.0,0.81198708]
[1738012586962,0.00163256,102450.0,102440.0,0.81198708]
[1738012587172,0.64895174,102490.0,102480.0,0.158895]
[1738012587383,0.94159737,102490.0,102480.0,0.012525]
[1738012587589,0.94159737,102490.0,102480.0,0.60558096]
[1738012587808,0.94159737,102490.0,102480.0,0.60460529]
[1738012588036,0.74644637,102490.0,102480.0,0.75097529]
[1738012588249,0.50283738,102490.0,102480.0,0.83337529]
[1738012588892,0.94313967,102490.0,102480.0,0.60460529]
[1738012589118,0.79032445,102490.0,102480.0,0.60460529]
[1738012589348,0.74753967,102490.0,102480.0,0.60460529]
[1738012589558,0.84753967,102490.0,102480.0,0.59208029]
[1738012589791,1.04488696,102490.0,102480.0,0.59208029]
[1738012590006,1.23767174,102490.0,102480.0,0.60460529]
[1738012590221,1.03767174,102490.0,102480.0,0.59208029]
[1738012590665,1.03867174,102490.0,102480.0,0.60460529]
[1738012590883,1.05397384,102490.0,102480.0,0.59208029]
[1738012591098,1.05311534,102490.0,102480.0,0.59208029]
[1738012591314,1.05211534,102490.0,102480.0,0.59208029]
[1738012591520,1.0641459,102490.0,102480.0,0.59208029]
[1738012591728,1.16679861,102490.0,102480.0,0.59208029]
[1738012591990,1.12401383,102490.0,102480.0,0.59208029]
[1738012592414,0.93661383,102490.0,102480.0,0.60460529]
[1738012593235,0.77658327,102490.0,102480.0,0.60460529]
[1738012594320,0.77458327,102490.0,102480.0,0.60460529]
[1738012594748,0.77458327,102490.0,102480.0,0.60560529]
[1738012595171,0.77558327,102490.0,102480.0,0.60560529]
[1738012595381,0.74768117,102490.0,102480.0,0.60460529]
[1738012595606,0.74668117,102490.0,102480.0,0.75097529]
[1738012595858,0.76198217,102490.0,102480.0,0.75097529]
[1738012596064,0.76198217,102490.0,102480.0,0.60460529]
[1738012596533,0.76198217,102490.0,102480.0,0.75097529]
[1738012596768,0.76298217,102490.0,102480.0,0.60460529]
[1738012597008,0.76198217,102490.0,102480.0,0.75097529]
[1738012597239,0.51827988,102490.0,102480.0,0.82647529]
[1738012597475,0.51827988,102490.0,102480.0,0.82747529]
[1738012597714,0.51927988,102490.0,102480.0,0.82747529]
[1738012597939,0.00128884,102490.0,102480.0,0.82747529]
[1738012598386,0.00028884,102490.0,102480.0,0.82747529]
[1738012598615,0.00028884,102490.0,102480.0,0.93582258]
[1738012598836,0.00028884,102490.0,102480.0,0.84847529]
[1738012599321,0.00028884,102490.0,102480.0,0.81595029]
[1738012599534,0.00028884,102490.0,102480.0,0.82847529]
[1738012601029,0.00028884,102490.0,102480.0,0.83847529]
[1738012601270,0.00028884,102490.0,102480.0,0.95582258]
[1738012601748,0.00028884,102490.0,102480.0,0.93582258]
[1738012601982,0.24399113,102490.0,102480.0,0.60660529]
[1738012602225,0.64933388,102490.0,102480.0,0.60560529]
[1738012602442,0.72805953,102490.0,102480.0,0.61360529]
[1738012602649,0.72805953,102490.0,102480.0,0.606045]
[1738012602856,0.66463322,102490.0,102480.0,0.60634194]
[1738012603712,0.76198051,102490.0,102480.0,0.58581694]
[1738012603923,0.76198051,102490.0,102480.0,0.59081694]
[1738012604130,0.76198051,102490.0,102480.0,0.60634194]
[1738012604343,0.51827822,102490.0,102480.0,0.75271194]
[1738012604554,0.51827822,102490.0,102480.0,0.74971194]
[1738012604982,0.84795493,102490.0,102480.0,0.59281694]
[1738012605595,0.84795493,102490.0,102480.0,0.60534194]
[1738012606042,0.76198051,102490.0,102480.0,0.60534194]
[1738012608393,0.86198051,102490.0,102480.0,0.59281694]
[1738012608618,0.84668117,102490.0,102480.0,0.59281694]
[1738012609473,0.84668117,102490.0,102480.0,0.59081694]
[1738012609474,0.99229928,102490.0,102480.0,0.59081694]
[1738012609679,0.99668117,102490.0,102480.0,0.59081694]
[1738012609931,0.99768117,102490.0,102480.0,0.58581694]
[1738012610141,1.09702846,102490.0,102480.0,0.58581694]
[1738012610357,1.09502846,102490.0,102480.0,0.58581694]
[1738012610776,1.09702846,102490.0,102480.0,0.58581694]
[1738012611218,0.99962729,102490.0,102480.0,0.58581694]
[1738012611631,0.99862729,102490.0,102480.0,0.58581694]
[1738012611818,1.0139291,102490.0,102480.0,0.58581694]
[1738012612026,1.0149291,102490.0,102480.0,0.58581694]
[1738012612238,0.7649291,102490.0,102480.0,0.59834194]
[1738012612457,0.52122681,102490.0,102480.0,0.74471194]
[1738012612912,0.01753677,102490.0,102480.0,0.74471194]
[1738012613123,0.89828652,102500.0,102490.0,0.012525]
[1738012613343,0.99563381,102500.0,102490.0,0.59897057]
[1738012613564,0.99563381,102500.0,102490.0,0.597995]
[1738012613779,0.99563381,102500.0,102490.0,0.74435]
[1738012613993,0.99563381,102500.0,102490.0,0.597995]
[1738012614462,0.99563381,102500.0,102490.0,0.598995]
[1738012614700,0.99563381,102500.0,102490.0,0.74535]
[1738012614949,0.26503986,102510.0,102500.0,0.146341]
[1738012615247,0.84424974,102520.0,102510.0,0.012525]
[1738012615490,0.84424974,102520.0,102510.0,0.597905]
[1738012615491,0.94159703,102520.0,102510.0,0.597905]
[1738012615978,0.94159703,102520.0,102510.0,0.744232]
[1738012616227,0.64915474,102520.0,102510.0,0.744232]
[1738012616466,0.50283174,102520.0,102510.0,0.744232]
[1738012616707,0.51912754,102520.0,102510.0,0.744232]
[1738012616951,0.68518056,102520.0,102510.0,0.597905]
[1738012617175,0.50383174,102520.0,102510.0,0.746232]
[1738012617414,0.50383174,102520.0,102510.0,0.744232]
[1738012617656,0.50383174,102520.0,102510.0,0.749232]
[1738012617863,0.50283174,102520.0,102510.0,0.749232]
[1738012618092,0.50283174,102520.0,102510.0,0.750232]
[1738012618388,0.64914374,102520.0,102510.0,0.603905]
[1738012618661,0.64914374,102520.0,102510.0,0.602905]
[1738012619178,0.64914374,102520.0,102510.0,0.604905]
[1738012619432,0.64914374,102520.0,102510.0,0.602905]
[1738012619908,0.64914374,102520.0,102510.0,0.603905]
[1738012620130,0.64914374,102520.0,102510.0,0.745232]
[1738012620350,0.64914374,102520.0,102510.0,0.746232]
[1738012620592,0.64914374,102520.0,102510.0,0.598905]
[1738012621016,0.74649103,102520.0,102510.0,0.598905]
[1738012621228,0.74649103,102520.0,102510.0,0.58638]
[1738012621485,1.13945643,102520.0,102510.0,0.58738]
[1738012621684,1.18812278,102520.0,102510.0,0.58738]
[1738012622108,1.11112278,102520.0,102510.0,0.58738]
[1738012622318,1.18852278,102520.0,102510.0,0.58638]
[1738012622533,1.2077021,102520.0,102510.0,0.58538]
[1738012622787,1.2087021,102520.0,102510.0,0.58638]
[1738012623002,1.2087021,102520.0,102510.0,0.52785]
[1738012623224,1.6489661,102520.0,102510.0,0.04228809]
[1738012623438,0.395755,102490.0,102480.0,0.00029694]
[1738012623645,0.195217,102450.0,102420.0,0.07699715]
[1738012623854,0.146441,102430.0,102420.0,0.01282215]
[1738012624080,0.50269004,102430.0,102420.0,0.00078821]
[1738012624285,0.17366634,102440.0,102430.0,0.158966]
[1738012624705,0.51525004,102450.0,102430.0,0.647076]
[1738012624908,0.50269004,102450.0,102440.0,0.158952]
[1738012625344,0.05412648,102470.0,102460.0,0.158923]
[1738012625556,0.3415577,102520.0,102510.0,0.012525]
[1738012625768,0.87104289,102520.0,102510.0,0.64758749]
[1738012625977,0.12468156,102520.0,102510.0,0.646612]
[1738012626400,0.39647388,102520.0,102510.0,0.500285]
[1738012626645,0.89916392,102520.0,102510.0,0.48776]
[1738012626900,0.99916392,102520.0,102510.0,0.48776]
[1738012627126,1.11278316,102520.0,102510.0,0.48776]
[1738012627363,1.2003225,102520.0,102510.0,0.48776]
[1738012627586,1.2003225,102520.0,102510.0,0.48876]
[1738012628287,1.2003225,102520.0,102510.0,0.48905694]
[1738012628720,1.62655267,102520.0,102510.0,0.39050694]
[1738012628936,1.54614267,102520.0,102510.0,0.39050694]
[1738012629134,1.54614267,102520.0,102510.0,0.29295694]
[1738012629359,1.83456767,102520.0,102510.0,0.20869694]
[1738012629779,1.83456767,102520.0,102510.0,0.20595279]
[1738012629998,1.23791567,102520.0,102510.0,0.00029694]
[1738012630228,1.24539067,102520.0,102510.0,0.00029694]
[1738012630486,1.37095467,102520.0,102510.0,0.00029694]
[1738012630692,1.16785133,102520.0,102510.0,0.00029694]
[1738012630914,1.42796733,102520.0,102510.0,0.00029694]
[1738012631347,0.146398,102460.0,102450.0,0.0452]
[1738012631562,0.90561499,102460.0,102450.0,0.0452]
[1738012631802,1.05974147,102460.0,102450.0,0.00014734]
[1738012632232,1.05974147,102460.0,102450.0,0.01267234]
[1738012632447,0.92010167,102460.0,102450.0,0.01267234]
[1738012632669,0.67635638,102460.0,102450.0,0.16208434]
[1738012632882,0.92010167,102460.0,102450.0,0.06207234]
[1738012633108,0.92010167,102460.0,102450.0,0.04954734]
[1738012633315,0.92010167,102460.0,102450.0,0.06207234]
[1738012633740,0.92010167,102460.0,102450.0,0.06307234]
[1738012633963,0.67635638,102460.0,102450.0,0.06307234]
[1738012634175,0.6222299,102460.0,102450.0,0.28726025]
[1738012634443,0.6222299,102460.0,102450.0,0.77430434]
[1738012634654,0.6222299,102460.0,102450.0,0.77330434]
[1738012635077,0.6222299,102460.0,102450.0,0.77030434]
[1738012635973,0.7686279,102460.0,102450.0,0.77030434]
[1738012636410,0.7686279,102460.0,102450.0,0.62389234]
[1738012636616,0.6222299,102460.0,102450.0,0.77130434]
[1738012636823,0.86597519,102460.0,102450.0,0.77130434]
[1738012637090,0.71957719,102460.0,102450.0,0.77130434]
[1738012637303,0.96332248,102460.0,102450.0,0.77130434]
[1738012637781,0.6222299,102460.0,102450.0,0.77230434]
[1738012638499,0.7686279,102460.0,102450.0,0.77130434]
[1738012638722,0.6222299,102460.0,102450.0,0.77130434]
[1738012638956,0.6222299,102460.0,102450.0,0.75977934]
[1738012639181,0.6222299,102460.0,102450.0,0.77230434]
[1738012639409,0.11953986,102460.0,102450.0,0.77130434]
[1738012639650,0.6222299,102460.0,102450.0,0.77230434]
[1738012640350,0.94688468,102460.0,102450.0,0.54909234]
[1738012640566,0.86597519,102460.0,102450.0,0.69580128]
[1738012640769,0.86597519,102460.0,102450.0,0.54938928]
[1738012641207,0.86597519,102460.0,102450.0,0.69580128]
[1738012641419,0.6222299,102460.0,102450.0,0.69580128]
[1738012641642,0.7686279,102460.0,102450.0,0.54938928]
[1738012641854,0.96332248,102460.0,102450.0,0.54938928]
[1738012642274,0.86597519,102460.0,102450.0,0.69580128]
[1738012642484,0.7686279,102460.0,102450.0,0.69580128]
[1738012642697,0.86597519,102460.0,102450.0,0.54938928]
[1738012642902,0.86597519,102460.0,102450.0,0.53686428]
[1738012643146,0.86597519,102460.0,102450.0,0.54938928]
[1738012643147,0.98127973,102460.0,102450.0,0.54938928]
[1738012643855,0.98127973,102460.0,102450.0,0.53686428]
[1738012644092,0.98127973,102460.0,102450.0,0.53586428]
[1738012644846,1.20462853,102460.0,102450.0,0.48946428]
[1738012645056,1.24524777,102460.0,102450.0,0.48946428]
[1738012645301,1.24524777,102460.0,102450.0,0.48846428]
[1738012646080,1.20462853,102460.0,102450.0,0.48878207]
[1738012646358,0.86597519,102460.0,102450.0,0.50130707]
[1738012646613,0.86597519,102460.0,102450.0,0.48878207]
[1738012647104,1.01597519,102460.0,102450.0,0.48878207]
[1738012647327,1.13632248,102460.0,102450.0,0.48878207]
[1738012647747,1.15394172,102460.0,102450.0,0.48878207]
[1738012648428,1.20488003,102460.0,102450.0,0.45269337]
[1738012648647,1.22478285,102460.0,102450.0,0.45369337]
[1738012649093,1.22478285,102460.0,102450.0,0.45269337]
[1738012649302,1.90973585,102460.0,102450.0,0.45269337]
[1738012649552,0.296441,102430.0,102420.0,0.00029715]
[1738012649773,1.77621219,102430.0,102420.0,0.00029715]
[1738012650007,2.08839622,102430.0,102420.0,0.00029715]
[1738012650254,1.79114467,102430.0,102420.0,0.01282215]
[1738012650699,1.25514467,102430.0,102420.0,0.01282215]
[1738012650911,0.86585638,102430.0,102420.0,0.69503715]
[1738012651125,0.67635638,102430.0,102420.0,0.77223715]
[1738012651360,0.67635638,102430.0,102420.0,0.62578215]
[1738012651981,0.67635638,102430.0,102420.0,0.77223715]
[1738012652190,0.55681652,102430.0,102420.0,0.77223715]
[1738012652624,0.55681652,102430.0,102420.0,0.75971215]
[1738012653016,0.70325752,102430.0,102420.0,0.62025715]
[1738012653864,0.79721257,102430.0,102420.0,0.62025715]
[1738012654070,0.70325752,102430.0,102420.0,0.62025715]
[1738012654281,0.80060481,102430.0,102420.0,0.55058215]
[1738012654485,0.80060481,102430.0,102420.0,0.53805715]
[1738012654689,0.80060481,102430.0,102420.0,0.54858215]
[1738012654897,0.80060481,102430.0,102420.0,0.55058215]
[1738012655112,0.8979521,102430.0,102420.0,0.55158215]
[1738012655518,0.80060481,102430.0,102420.0,0.55058215]
[1738012655941,0.80060481,102430.0,102420.0,0.53805715]
[1738012656152,0.80060481,102430.0,102420.0,0.55058215]
[1738012656772,0.80060481,102430.0,102420.0,0.54858215]
[1738012657466,0.55681652,102430.0,102420.0,0.69503715]
[1738012657979,0.55681652,102430.0,102420.0,0.48845715]
[1738012657980,0.80060481,102430.0,102420.0,0.48845715]
[1738012658188,0.95060481,102430.0,102420.0,0.49045715]
[1738012658391,0.99122405,102430.0,102420.0,0.49045715]
[1738012658602,1.01422405,102430.0,102420.0,0.49045715]
[1738012658833,1.11157134,102430.0,102420.0,0.47093015]
[1738012659044,1.46508434,102430.0,102420.0,0.37105734]
[1738012659263,1.87332265,102430.0,102420.0,0.21191567]
[1738012659485,1.87332265,102430.0,102420.0,0.16465152]
[1738012659697,1.87332265,102430.0,102420.0,0.001]
[1738012659905,1.87332265,102430.0,102420.0,0.006]
[1738012660115,0.190475,102420.0,102400.0,0.00029694]
[1738012660332,1.42449546,102410.0,102400.0,0.00029694]
[1738012660537,2.15730474,102410.0,102400.0,0.00029694]
[1738012661336,2.15730474,102410.0,102400.0,0.000788]
[1738012661536,2.18874719,102410.0,102400.0,0.000788]
[1738012661861,2.10242719,102410.0,102400.0,0.000788]
[1738012662075,2.3150896,102410.0,102400.0,0.000788]
[1738012663046,2.33634383,102410.0,102400.0,0.000788]
[1738012663246,2.36164795,102410.0,102400.0,0.000788]
[1738012665227,2.38464795,102410.0,102400.0,0.000788]
[1738012666112,2.41258626,102410.0,102400.0,1e-06]
[1738012666342,3.17845726,102410.0,102400.0,1e-06]
[1738012667005,0.30962255,102380.0,102370.0,0.00029694]
[1738012667224,2.11656795,102380.0,102370.0,0.00044429]
[1738012667485,2.52875198,102380.0,102370.0,0.00044429]
[1738012668127,2.42875198,102380.0,102370.0,0.00044429]
[1738012668354,0.246555,102350.0,102340.0,0.07033859]
[1738012668575,0.96613219,102350.0,102340.0,0.07048597]
[1738012668794,1.08881622,102350.0,102340.0,0.07695251]
[1738012669008,1.33616351,102350.0,102340.0,0.07695251]
[1738012669428,1.33616351,102350.0,102340.0,0.08947751]
[1738012669846,1.33616351,102350.0,102340.0,0.09047751]
[1738012670501,1.33616351,102350.0,102340.0,0.09247751]
[1738012671167,0.85084969,102350.0,102340.0,0.09345458]
[1738012671407,0.67635638,102350.0,102340.0,0.24002458]
[1738012671631,1.02025867,102350.0,102340.0,0.09247751]
[1738012671856,0.89143987,102350.0,102340.0,0.09247751]
[1738012672077,0.82291138,102350.0,102340.0,0.24002456]
[1738012672291,0.82291138,102350.0,102340.0,0.23904751]
[1738012672554,0.67635638,102350.0,102340.0,0.23904751]
[1738012672764,0.50269004,102370.0,102360.0,0.207912]
[1738012672990,0.50269004,102370.0,102360.0,0.135625]
[1738012672991,0.74656433,102370.0,102360.0,0.135625]
[1738012673202,0.94391162,102370.0,102360.0,0.0669265]
[1738012673413,1.09391162,102370.0,102360.0,0.0544015]
[1738012673634,1.09391162,102370.0,102360.0,0.048]
[1738012673850,1.09391162,102370.0,102360.0,0.0064015]
[1738012674071,1.09491162,102370.0,102360.0,0.0064015]
[1738012674292,0.25,102360.0,102340.0,0.06918597]
[1738012674506,0.36344215,102350.0,102340.0,0.06918597]
[1738012674715,1.17025867,102350.0,102340.0,0.06918597]
[1738012674933,1.17025867,102350.0,102340.0,0.08171097]
[1738012675153,1.17025867,102350.0,102340.0,0.08371097]
[1738012675373,1.06084885,102350.0,102340.0,0.08371097]
[1738012675588,0.92025867,102350.0,102340.0,0.08171097]
[1738012675797,0.92025867,102350.0,102340.0,0.08271097]
[1738012676213,0.92025867,102350.0,102340.0,0.08171097]
[1738012676426,0.67635638,102350.0,102340.0,0.22828097]
[1738012676651,0.441934,102360.0,102350.0,0.012525]
[1738012676869,0.63662858,102360.0,102350.0,0.012525]
[1738012677084,0.63662858,102360.0,102350.0,0.01895974]
[1738012677301,0.146545,102360.0,102350.0,0.01350193]
[1738012677523,0.146545,102360.0,102350.0,0.16649167]
[1738012677738,0.146545,102360.0,102350.0,0.50943667]
[1738012677920,0.146545,102360.0,102350.0,0.50845974]
[1738012678141,0.146545,102360.0,102350.0,0.65501474]
[1738012678360,0.22975236,102360.0,102350.0,0.50845974]
[1738012678573,0.6222299,102370.0,102360.0,0.159066]
[1738012678821,0.71957719,102370.0,102360.0,0.48847]
[1738012679040,0.71957719,102370.0,102360.0,0.50739295]
[1738012679255,0.86610419,102370.0,102360.0,0.50739295]
[1738012679477,0.96345148,102370.0,102360.0,0.50739295]
[1738012679695,1.21345148,102370.0,102360.0,0.49486795]
[1738012679910,1.21345148,102370.0,102360.0,0.50939295]
[1738012680130,1.21345148,102370.0,102360.0,0.49586795]
[1738012680321,1.21345148,102370.0,102360.0,0.50839295]
[1738012680564,1.21345148,102370.0,102360.0,0.50939295]
[1738012680777,1.21345148,102370.0,102360.0,0.50839295]
[1738012681646,1.01610419,102370.0,102360.0,0.50939295]
[1738012682985,0.45269004,102370.0,102360.0,0.95167152]
[1738012683202,0.01924474,102410.0,102400.0,0.159009]
[1738012683421,0.0001416,102410.0,102400.0,0.159009]
[1738012683647,0.0001416,102410.0,102400.0,0.69716536]
[1738012683858,0.0001416,102410.0,102400.0,0.78186954]
[1738012684074,0.0001416,102410.0,102400.0,0.77959999]
[1738012684494,0.00028868,102410.0,102400.0,0.77959999]
[1738012685842,0.0001415,102450.0,102440.0,0.158952]
[1738012686049,0.0001415,102450.0,102440.0,0.64801802]
[1738012686050,0.00063256,102450.0,102440.0,0.64801802]
[1738012686272,0.00063256,102450.0,102440.0,0.50752984]
[1738012686500,0.24439185,102450.0,102440.0,0.50752984]
[1738012686717,0.24439185,102450.0,102440.0,0.50522489]
[1738012686928,0.39439185,102450.0,102440.0,0.50752912]
[1738012687141,0.4407447,102450.0,102440.0,0.49500412]
[1738012687360,0.53809199,102450.0,102440.0,0.500615]
[1738012687571,0.49639185,102450.0,102440.0,0.500615]
[1738012689258,0.39639185,102450.0,102440.0,0.500615]
[1738012689494,0.39739185,102450.0,102440.0,0.647042]
[1738012689757,0.39739185,102450.0,102440.0,0.500615]
[1738012690262,0.39739185,102450.0,102440.0,0.647042]
[1738012690786,0.00363256,102450.0,102440.0,0.647042]
[1738012692210,0.00263256,102450.0,102440.0,0.647042]
[1738012692456,0.00263256,102450.0,102440.0,0.650042]
[1738012692950,0.00063256,102450.0,102440.0,0.647042]
[1738012693192,0.00163256,102450.0,102440.0,0.704242]
[1738012693430,0.00063256,102450.0,102440.0,0.698242]
[1738012693629,0.00063256,102450.0,102440.0,0.702242]
[1738012694081,0.34439185,102450.0,102440.0,0.551815]
[1738012694289,0.44173914,102450.0,102440.0,0.551815]
[1738012694918,0.44173914,102450.0,102440.0,0.549815]
[1738012695131,0.44173914,102450.0,102440.0,0.552815]
[1738012695556,0.44273914,102450.0,102440.0,0.557815]
[1738012695812,0.44173914,102450.0,102440.0,0.549815]
[1738012695989,0.44173914,102450.0,102440.0,0.555815]
[1738012696894,0.44173914,102450.0,102440.0,0.54329]
[1738012697109,0.44173914,102450.0,102440.0,0.555815]
[1738012697333,0.58573914,102450.0,102440.0,0.49409]
[1738012697556,0.53009199,102450.0,102440.0,0.49409]
[1738012697777,0.63289199,102450.0,102440.0,0.49409]
[1738012698060,0.63289199,102450.0,102440.0,0.415994]
[1738012698061,0.67437603,102450.0,102440.0,0.415994]
[1738012698276,0.64289199,102450.0,102440.0,0.415994]
[1738012698501,0.64289199,102450.0,102440.0,0.409994]
[1738012698727,0.64489199,102450.0,102440.0,0.409994]
[1738012698977,1.02636303,102450.0,102440.0,0.24884979]
[1738012699249,1.01636303,102450.0,102440.0,0.15122979]
[1738012699512,1.01736303,102450.0,102440.0,0.15122979]
[1738012699759,1.01836303,102450.0,102440.0,0.15122979]
[1738012700011,0.50815185,102450.0,102440.0,0.15122979]
[1738012700263,0.50535185,102450.0,102440.0,0.15122979]
[1738012700510,0.49193599,102450.0,102440.0,0.15122979]
[1738012700762,0.56893599,102450.0,102440.0,0.15122979]
[1738012701009,0.68828328,102450.0,102440.0,0.15152694]
[1738012701256,0.68842478,102450.0,102440.0,0.15152694]
[1738012701501,1.30284278,102450.0,102440.0,0.05390694]
[1738012701774,0.82837078,102450.0,102440.0,0.05390694]
[1738012702023,0.84685482,102450.0,102440.0,0.05390694]
[1738012702298,0.84024282,102450.0,102440.0,9.4e-07]
[1738012702539,0.72641878,102450.0,102440.0,9.4e-07]
[1738012704025,0.146484,102400.0,102390.0,0.00097643]
[1738012704274,0.74652133,102400.0,102390.0,0.00097643]
[1738012704521,0.74652133,102400.0,102390.0,0.01350143]
[1738012704522,0.80064781,102400.0,102390.0,0.01350143]
[1738012704770,0.70330052,102400.0,102390.0,0.15999943]
[1738012705016,0.70330052,102400.0,102390.0,0.01350143]
[1738012705254,0.70330052,102400.0,102390.0,0.16349049]
[1738012705500,0.70430052,102400.0,102390.0,0.17149049]
[1738012705975,0.70430052,102400.0,102390.0,0.02499249]
[1738012706216,0.55781652,102400.0,102390.0,0.17149049]
[1738012706701,0.70430052,102400.0,102390.0,0.17149049]
[1738012707693,0.55781652,102400.0,102390.0,0.17149049]
[1738012708150,0.55781652,102400.0,102390.0,0.29619049]
[1738012708373,0.55781652,102400.0,102390.0,0.29521406]
[1738012708374,0.001,102400.0,102390.0,0.29521406]
[1738012708995,0.50369004,102400.0,102390.0,0.29521406]
[1738012709970,0.50369004,102400.0,102390.0,0.78352406]
[1738012710373,0.001,102400.0,102390.0,0.91387135]
[1738012710801,0.001,102400.0,102390.0,1.08387135]
[1738012711832,0.001,102400.0,102390.0,1.06387135]
[1738012712033,0.001,102400.0,102390.0,1.08387135]
[1738012712577,0.001,102400.0,102390.0,1.0841685]
[1738012713822,0.50369004,102400.0,102390.0,1.0841685]
[1738012714813,0.50369004,102400.0,102390.0,0.92129621]
[1738012715013,0.50369004,102400.0,102390.0,0.77129621]
[1738012715223,0.50369004,102400.0,102390.0,0.78382121]
[1738012715640,0.65017404,102400.0,102390.0,0.62479821]
[1738012715851,0.65017404,102400.0,102390.0,0.77129621]
[1738012716059,0.65017404,102400.0,102390.0,0.78382121]
[1738012716269,0.74752133,102400.0,102390.0,0.78382121]
[1738012716478,0.65017404,102400.0,102390.0,0.78382121]
[1738012716687,0.50369004,102400.0,102390.0,0.78382121]
[1738012716892,0.65017404,102400.0,102390.0,0.78382121]
[1738012717093,0.65017404,102400.0,102390.0,0.77129621]
[1738012717314,0.65017404,102400.0,102390.0,0.56022321]
[1738012718140,0.66090075,102400.0,102390.0,0.70672121]
[1738012718347,0.65017404,102400.0,102390.0,0.70672121]
[1738012718554,0.65017404,102400.0,102390.0,0.56022321]
[1738012718760,0.65017404,102400.0,102390.0,0.70672121]
[1738012718967,0.50369004,102400.0,102390.0,0.70672121]
[1738012719171,0.65017404,102400.0,102390.0,0.56022321]
[1738012719402,0.96103482,102400.0,102390.0,0.54769821]
[1738012719616,1.06103482,102400.0,102390.0,0.50009821]
[1738012719836,1.0151613,102400.0,102390.0,0.50009821]
[1738012720072,1.34781415,102400.0,102390.0,0.36336721]
[1738012720285,1.86194919,102400.0,102390.0,0.30476821]
[1738012720521,1.84641619,102400.0,102390.0,0.30476821]
[1738012720743,1.79328819,102400.0,102390.0,0.26898763]
[1738012721053,1.79328819,102400.0,102390.0,0.27098763]
[1738012721303,1.79228819,102400.0,102390.0,0.27098763]
[1738012721550,1.38829819,102400.0,102390.0,0.26898763]
[1738012721782,1.39677319,102400.0,102390.0,0.26898763]
[1738012722258,1.39911071,102400.0,102390.0,0.27398763]
[1738012722472,1.39911071,102400.0,102390.0,0.26898763]
[1738012722680,1.36962667,102400.0,102390.0,0.26898763]
[1738012723111,1.40111071,102400.0,102390.0,0.26898763]
[1738012723507,1.41858571,102400.0,102390.0,0.26898763]
[1738012724210,2.04173571,102400.0,102390.0,0.26898763]
[1738012724433,2.04921071,102400.0,102390.0,0.26898763]
[1738012724665,1.63473271,102400.0,102390.0,0.26898763]
[1738012724890,1.41858571,102400.0,102390.0,0.26898763]
[1738012725316,1.53058271,102400.0,102390.0,0.26898763]
[1738012725521,1.58199971,102400.0,102390.0,0.26898763]
[1738012725745,1.40111071,102400.0,102390.0,0.26898763]
[1738012725979,0.88301385,102400.0,102390.0,0.26898763]
[1738012726189,1.12664033,102400.0,102390.0,0.26898763]